[Event "34e Open International d'Ã©checs d'Avoi"]
[Site "Avoine, France"]
[Date "2019.07.22"]
[Round "3.1"]
[White "Shirazi, Kamran"]
[Black "Vedmediuc, Serghei"]
[Result "0-1"]
[WhiteElo "2343"]
[BlackElo "2450"]
[Annotator "Smith,John"]
[PlyCount "50"]
[EventDate "2019.??.??"]
[TimeControl "1"]

1. e4 {[%emt 0:00:32]} c5 {[%emt 0:03:41]} 2. Nf3 {[%emt 0:00:14]} Nc6 {
[%emt 0:00:07]} 3. b3 {[%emt 0:00:49]} e5 {[%emt 0:10:42]} 4. Bb2 {
[%emt 0:00:07]} d6 {[%emt 0:00:05]} 5. d4 {[%emt 0:00:08]} cxd4 {[%emt 0:11:15]
} 6. c3 {[%emt 0:00:00]} dxc3 {[%emt 0:01:02]} 7. Nxc3 {[%emt 0:00:05]} Nf6 {
[%emt 0:00:08]} 8. a3 {[%emt 0:06:32]} Be7 {[%emt 0:01:06]} 9. h3 {
[%emt 0:01:27]} O-O {[%emt 0:00:00]} 10. b4 {[%emt 0:00:39]} Be6 {
[%emt 0:16:08]} 11. Ng5 {[%emt 0:02:20]} Bd7 {[%emt 0:01:06]} 12. Bc4 {
[%emt 0:00:11]} Rc8 {[%emt 0:00:58]} 13. Ba2 {[%emt 0:14:47]} Nd4 {
[%emt 0:02:23]} 14. O-O {[%emt 0:00:26]} Nb5 {[%emt 0:00:00]} 15. Nxb5 {
[%emt 0:14:39]} Bxb5 {[%emt 0:00:14]} 16. Re1 {[%emt 0:00:06]} Bc4 {
[%emt 0:00:19]} 17. Bxc4 {[%emt 0:01:43]} Rxc4 {[%emt 0:00:07]} 18. Qd3 {
[%emt 0:00:22]} Qc7 {[%emt 0:00:45]} 19. f4 {[%emt 0:02:09]} Nh5 {
[%emt 0:11:00]} 20. fxe5 {[%emt 0:11:57]} Bxg5 {[%emt 0:02:40]} 21. exd6 {
[%emt 0:00:11]} Qc6 {[%emt 0:04:53]} 22. Be5 {[%emt 0:03:47]} Bf4 {
[%emt 0:02:49]} 23. Bxf4 {[%emt 0:02:03]} Nxf4 {[%emt 0:00:00]} 24. Qd2 {
[%emt 0:00:35]} g5 {[%emt 0:03:00]} 25. Rac1 {[%emt 0:00:36]} Rxc1 {
[%emt 0:00:54]} 0-1

[Event "34e Open International d'Ã©checs d'Avoin"]
[Site "Avoine, France"]
[Date "2019.07.22"]
[Round "3.2"]
[White "Eugene, Floryan"]
[Black "Dionisi, Thomas"]
[Result "1/2-1/2"]
[WhiteElo "2300"]
[BlackElo "2405"]
[PlyCount "139"]
[EventDate "2019.??.??"]
[TimeControl "1"]

1. d4 {[%emt 0:00:23]} f5 {[%emt 0:09:30]} 2. Bf4 {[%emt 0:00:37]} Nf6 {
[%emt 0:00:14]} 3. e3 {[%emt 0:00:07]} g6 {[%emt 0:02:22]} 4. h4 {
[%emt 0:00:10]} h6 {[%emt 0:00:03]} 5. Qf3 {[%emt 0:00:31]} d6 {[%emt 0:00:33]}
6. Nc3 {[%emt 0:00:00]} c6 {[%emt 0:02:26]} 7. Bc4 {[%emt 0:00:40]} d5 {
[%emt 0:04:02]} 8. Bd3 {[%emt 0:08:45]} Be6 {[%emt 0:00:52]} 9. h5 {
[%emt 0:23:10]} Nxh5 {[%emt 0:05:00]} 10. Rxh5 {[%emt 0:01:28]} gxh5 {
[%emt 0:00:06]} 11. Bxf5 {[%emt 0:00:05]} Bxf5 {[%emt 0:19:44]} 12. Qxh5+ {
[%emt 0:00:12]} Kd7 {[%emt 0:00:03]} 13. Qxf5+ {[%emt 0:00:13]} e6 {
[%emt 0:00:04]} 14. Qg4 {[%emt 0:14:53]} Bd6 {[%emt 0:11:00]} 15. Bxd6 {
[%emt 0:11:54]} Kxd6 {[%emt 0:00:04]} 16. Nf3 {[%emt 0:00:27]} Kc7 {
[%emt 0:16:12]} 17. Qxe6 {[%emt 0:06:40]} Qd6 {[%emt 0:01:04]} 18. Qxd6+ {
[%emt 0:05:48]} Kxd6 {[%emt 0:00:03]} 19. Ne5 {[%emt 0:04:28]} Rg8 {
[%emt 0:04:00]} 20. Ke2 {[%emt 0:01:28]} Nd7 {[%emt 0:02:41]} 21. Rh1 {
[%emt 0:00:26]} Nxe5 {[%emt 0:02:30]} 22. dxe5+ {[%emt 0:00:01]} Kxe5 {
[%emt 0:00:40]} 23. Rh5+ {[%emt 0:00:02]} Kf6 {[%emt 0:02:54]} 24. Rxh6+ {
[%emt 0:00:08]} Rg6 {[%emt 0:00:00]} 25. Rh7 {[%emt 0:02:55]} Rg7 {
[%emt 0:00:41]} 26. Rh6+ {[%emt 0:00:20]} Rg6 {[%emt 0:11:27]} 27. Rh7 {
[%emt 0:05:48]} Rg7 {[%emt 0:00:04]} 28. Rxg7 {[%emt 0:05:03]} Kxg7 {
[%emt 0:00:04]} 29. Kd3 {[%emt 0:00:58]} Rh8 {[%emt 0:05:00]} 30. e4 {
[%emt 0:00:54]} Rh2 {[%emt 0:02:12]} 31. exd5 {[%emt 0:01:07]} cxd5 {
[%emt 0:00:05]} 32. Nxd5 {[%emt 0:01:27]} Rxg2 {[%emt 0:00:03]} 33. Ke3 {
[%emt 0:00:34]} Kf7 {[%emt 0:00:55]} 34. a4 {[%emt 0:03:49]} Rg1 {
[%emt 0:00:00]} 35. Nc3 {[%emt 0:02:09]} Ke7 {[%emt 0:01:20]} 36. Nb5 {
[%emt 0:01:50]} a6 {[%emt 0:00:26]} 37. Nd4 {[%emt 0:00:01]} Kd6 {
[%emt 0:01:23]} 38. b3 {[%emt 0:00:00]} Rd1 {[%emt 0:01:07]} 39. Ne2 {
[%emt 0:00:34]} Kc5 {[%emt 0:01:46]} 40. Nc3 {[%emt 0:01:00]} Rd8 {
[%emt 0:03:16]} 41. Ne4+ {[%emt 0:06:04]} Kb4 {[%emt 0:08:10]} 42. f4 {
[%emt 0:00:43]} Rd5 {[%emt 0:05:21]} 43. Kf3 {[%emt 0:10:10]} Ka3 {
[%emt 0:12:11]} 44. Kg4 {[%emt 0:00:27]} Kb2 {[%emt 0:01:49]} 45. c4 {
[%emt 0:09:46]} Rd4 {[%emt 0:05:15]} 46. Nc5 {[%emt 0:10:59]} b6 {
[%emt 0:00:00]} 47. Ne6 {[%emt 0:00:05]} Rd6 {[%emt 0:01:42]} 48. Kf5 {
[%emt 0:00:01]} Kxb3 {[%emt 0:01:30]} 49. Ke5 {[%emt 0:00:01]} Rd1 {
[%emt 0:08:16]} 50. c5 {[%emt 0:00:08]} Re1+ {[%emt 0:02:42]} 51. Kd5 {
[%emt 0:00:19]} Rxe6 {[%emt 0:00:00]} 52. Kxe6 {[%emt 0:00:03]} bxc5 {
[%emt 0:00:05]} 53. f5 {[%emt 0:00:01]} c4 {[%emt 0:00:05]} 54. f6 {
[%emt 0:00:02]} c3 {[%emt 0:00:03]} 55. f7 {[%emt 0:00:02]} c2 {[%emt 0:00:03]}
56. f8=Q {[%emt 0:00:07]} c1=Q {[%emt 0:00:04]} 57. Qf3+ {[%emt 0:09:34]} Kxa4
{[%emt 0:00:30]} 58. Qe4+ {[%emt 0:00:06]} Ka3 {[%emt 0:06:45]} 59. Qf3+ {
[%emt 0:00:37]} Ka4 {[%emt 0:01:02]} 60. Qe4+ {[%emt 0:00:12]} Ka5 {
[%emt 0:00:06]} 61. Qd5+ {[%emt 0:00:46]} Kb6 {[%emt 0:00:14]} 62. Qb3+ {
[%emt 0:02:51]} Kc6 {[%emt 0:03:16]} 63. Qa4+ {[%emt 0:01:28]} Kb7 {
[%emt 0:02:33]} 64. Qb4+ {[%emt 0:01:06]} Kc7 {[%emt 0:02:35]} 65. Qd6+ {
[%emt 0:00:06]} Kb7 {[%emt 0:00:08]} 66. Qb4+ {[%emt 0:00:03]} Ka7 {
[%emt 0:00:51]} 67. Qe7+ {[%emt 0:00:55]} Kb6 {[%emt 0:01:11]} 68. Qb4+ {
[%emt 0:00:08]} Kc6 {[%emt 0:01:10]} 69. Qa4+ {[%emt 0:00:10]} Kc7 {
[%emt 0:00:24]} 70. Qa5+ {[%emt 0:00:14]} 1/2-1/2

[Event "34e Open International d'échecs d'Avoin"]
[Site "Avoine, France"]
[Date "2019.07.22"]
[Round "3.3"]
[White "Haub, Thorsten Michael"]
[Black "Eden, James"]
[Result "0-1"]
[WhiteElo "2404"]
[BlackElo "2343"]
[PlyCount "96"]
[EventDate "2019.??.??"]
[TimeControl "1"]

1. Nf3 {[%emt 0:00:03]} d5 {[%emt 0:00:21]} 2. g3 {[%emt 0:00:07]} Nf6 {
[%emt 0:01:06]} 3. Bg2 {[%emt 0:00:08]} Bg4 {[%emt 0:00:28]} 4. d3 {
[%emt 0:00:39]} Nbd7 {[%emt 0:01:34]} 5. Nbd2 {[%emt 0:02:17]} e5 {
[%emt 0:01:19]} 6. h3 {[%emt 0:00:27]} Bh5 {[%emt 0:01:59]} 7. e4 {
[%emt 0:00:20]} dxe4 {[%emt 0:10:00]} 8. dxe4 {[%emt 0:00:50]} Bc5 {
[%emt 0:01:18]} 9. Qe2 {[%emt 0:01:30]} c6 {[%emt 0:03:10]} 10. a4 {
[%emt 0:07:05]} Qc7 {[%emt 0:07:53]} 11. O-O {[%emt 0:00:00]} O-O {
[%emt 0:02:12]} 12. g4 {[%emt 0:17:25]} Bg6 {[%emt 0:01:33]} 13. Nh4 {
[%emt 0:00:05]} Rfe8 {[%emt 0:03:27]} 14. Nxg6 {[%emt 0:10:02]} hxg6 {
[%emt 0:00:11]} 15. Nf3 {[%emt 0:00:05]} Nf8 {[%emt 0:02:50]} 16. Ng5 {
[%emt 0:00:00]} N6h7 {[%emt 0:01:11]} 17. Nxh7 {[%emt 0:03:14]} Kxh7 {
[%emt 0:01:22]} 18. g5 {[%emt 0:09:13]} Ne6 {[%emt 0:01:36]} 19. h4 {
[%emt 0:00:13]} Rad8 {[%emt 0:03:55]} 20. c3 {[%emt 0:02:06]} a5 {
[%emt 0:01:02]} 21. Bh3 {[%emt 0:00:00]} Nf4 {[%emt 0:01:58]} 22. Bxf4 {
[%emt 0:00:30]} exf4 {[%emt 0:00:08]} 23. Rad1 {[%emt 0:00:56]} Qe5 {
[%emt 0:01:22]} 24. Rxd8 {[%emt 0:08:41]} Rxd8 {[%emt 0:00:08]} 25. Kg2 {
[%emt 0:02:40]} f3+ {[%emt 0:06:31]} 26. Qxf3 {[%emt 0:00:52]} Rd2 {
[%emt 0:00:11]} 27. Qg4 {[%emt 0:00:44]} Rxb2 {[%emt 0:01:18]} 28. h5 {
[%emt 0:02:44]} gxh5 {[%emt 0:01:28]} 29. Qxh5+ {[%emt 0:00:09]} Kg8 {
[%emt 0:00:05]} 30. Qg4 {[%emt 0:00:33]} g6 {[%emt 0:00:39]} 31. c4 {
[%emt 0:00:00]} Qd4 {[%emt 0:02:54]} 32. Qf4 {[%emt 0:01:07]} Bd6 {
[%emt 0:02:08]} 33. Qh4 {[%emt 0:01:54]} Re2 {[%emt 0:03:01]} 34. Qg4 {
[%emt 0:02:18]} Rxe4 {[%emt 0:01:46]} 35. Qf3 {[%emt 0:05:35]} Qe5 {
[%emt 0:05:30]} 36. Rd1 {[%emt 0:00:09]} Qxg5+ {[%emt 0:01:23]} 37. Kf1 {
[%emt 0:00:19]} Qe5 {[%emt 0:00:30]} 38. Bg2 {[%emt 0:01:25]} Rf4 {
[%emt 0:00:57]} 39. Qd3 {[%emt 0:02:46]} Bc5 {[%emt 0:00:00]} 40. Bf3 {
[%emt 0:00:21]} Kg7 {[%emt 0:02:00]} 41. Re1 {[%emt 0:02:49]} Qf6 {
[%emt 0:00:40]} 42. Kg2 {[%emt 0:00:27]} Qh4 {[%emt 0:01:46]} 43. Qc3+ {
[%emt 0:01:39]} Bd4 {[%emt 0:00:25]} 44. Qd2 {[%emt 0:00:11]} Qf6 {
[%emt 0:00:35]} 45. Qd3 {[%emt 0:00:21]} Qg5+ {[%emt 0:01:49]} 46. Kf1 {
[%emt 0:00:26]} Qh4 {[%emt 0:00:33]} 47. Qe2 {[%emt 0:01:14]} Qh3+ {
[%emt 0:01:11]} 48. Bg2 {[%emt 0:00:07]} Qg3 {[%emt 0:00:23]} 0-1

[Event "34e Open International d'Ã©checs d'Avoin"]
[Site "Avoine, France"]
[Date "2019.07.22"]
[Round "3.4"]
[White "Heurtebize, Olivier"]
[Black "Travadon, Loic"]
[Result "1/2-1/2"]
[WhiteElo "2298"]
[BlackElo "2403"]
[PlyCount "120"]
[EventDate "2019.??.??"]
[TimeControl "1"]

1. Nf3 {[%emt 0:00:02]} Nf6 {[%emt 0:00:04]} 2. g3 {[%emt 0:00:04]} g6 {
[%emt 0:00:24]} 3. Bg2 {[%emt 0:00:17]} Bg7 {[%emt 0:00:03]} 4. O-O {
[%emt 0:00:35]} O-O {[%emt 0:00:04]} 5. d4 {[%emt 0:00:07]} b6 {[%emt 0:00:29]}
6. c4 {[%emt 0:00:00]} Bb7 {[%emt 0:00:01]} 7. e3 {[%emt 0:06:32]} e6 {
[%emt 0:01:10]} 8. Qe2 {[%emt 0:01:36]} d5 {[%emt 0:00:20]} 9. Rd1 {
[%emt 0:01:58]} a5 {[%emt 0:05:50]} 10. Ne5 {[%emt 0:05:59]} Ne4 {
[%emt 0:05:31]} 11. cxd5 {[%emt 0:09:19]} exd5 {[%emt 0:00:11]} 12. Nc3 {
[%emt 0:00:10]} Nxc3 {[%emt 0:04:06]} 13. bxc3 {[%emt 0:00:02]} Nd7 {
[%emt 0:00:38]} 14. Ba3 {[%emt 0:03:29]} Re8 {[%emt 0:00:00]} 15. Nd3 {
[%emt 0:01:09]} c6 {[%emt 0:00:12]} 16. Qc2 {[%emt 0:02:51]} Ba6 {
[%emt 0:00:47]} 17. Nb2 {[%emt 0:03:52]} Rc8 {[%emt 0:02:57]} 18. Qb3 {
[%emt 0:13:36]} Nf6 {[%emt 0:01:56]} 19. c4 {[%emt 0:05:19]} b5 {[%emt 0:00:18]
} 20. cxb5 {[%emt 0:00:09]} cxb5 {[%emt 0:00:16]} 21. Bc5 {[%emt 0:00:44]} Ne4
{[%emt 0:00:51]} 22. Rac1 {[%emt 0:01:44]} b4 {[%emt 0:06:55]} 23. Rc2 {
[%emt 0:00:00]} Nc3 {[%emt 0:04:14]} 24. Rxc3 {[%emt 0:07:29]} bxc3 {
[%emt 0:00:01]} 25. Na4 {[%emt 0:00:21]} Bc4 {[%emt 0:00:19]} 26. Qxc3 {
[%emt 0:00:43]} Bxa2 {[%emt 0:00:47]} 27. Qa3 {[%emt 0:01:53]} Bc4 {
[%emt 0:01:01]} 28. Nb6 {[%emt 0:00:00]} Rb8 {[%emt 0:00:51]} 29. Qxa5 {
[%emt 0:04:11]} Bf8 {[%emt 0:02:12]} 30. Qa4 {[%emt 0:01:25]} Bh6 {
[%emt 0:22:44]} 31. Nxc4 {[%emt 0:01:54]} dxc4 {[%emt 0:00:02]} 32. Qxc4 {
[%emt 0:00:30]} Qf6 {[%emt 0:01:11]} 33. Qe2 {[%emt 0:02:51]} Rb3 {
[%emt 0:00:42]} 34. Bd5 {[%emt 0:04:56]} Rc3 {[%emt 0:01:32]} 35. Qf3 {
[%emt 0:01:20]} Qxf3 {[%emt 0:03:49]} 36. Bxf3 {[%emt 0:00:01]} Rb8 {
[%emt 0:00:15]} 37. Bd6 {[%emt 0:03:29]} Rd8 {[%emt 0:01:01]} 38. Bb4 {
[%emt 0:00:00]} Rc2 {[%emt 0:01:55]} 39. Be4 {[%emt 0:01:55]} Rb2 {
[%emt 0:01:20]} 40. Ba5 {[%emt 0:00:37]} Rc8 {[%emt 0:01:35]} 41. Ra1 {
[%emt 0:08:18]} Bf8 {[%emt 0:02:07]} 42. Ra4 {[%emt 0:02:19]} Rc1+ {
[%emt 0:01:13]} 43. Kg2 {[%emt 0:00:00]} Kg7 {[%emt 0:01:03]} 44. h4 {
[%emt 0:07:04]} Bd6 {[%emt 0:01:15]} 45. Bd3 {[%emt 0:00:44]} Rd1 {
[%emt 0:01:22]} 46. Bc3 {[%emt 0:00:28]} Rb7 {[%emt 0:00:00]} 47. Be4 {
[%emt 0:01:43]} Rc7 {[%emt 0:03:26]} 48. Bb2 {[%emt 0:01:14]} Rd2 {
[%emt 0:00:38]} 49. Ba1 {[%emt 0:13:34]} f5 {[%emt 0:00:14]} 50. Bc6 {
[%emt 0:00:00]} Re7 {[%emt 0:02:16]} 51. Kf3 {[%emt 0:02:57]} Rc2 {
[%emt 0:05:46]} 52. Ra6 {[%emt 0:02:03]} Bb4 {[%emt 0:00:37]} 53. d5+ {
[%emt 0:07:58]} Kh6 {[%emt 0:00:00]} 54. Ba4 {[%emt 0:01:16]} Ra2 {
[%emt 0:00:43]} 55. Bf6 {[%emt 0:04:47]} Be1 {[%emt 0:00:15]} 56. Kg2 {
[%emt 0:01:34]} Rb7 {[%emt 0:01:11]} 57. Bg5+ {[%emt 0:01:38]} Kg7 {
[%emt 0:00:00]} 58. Bf6+ {[%emt 0:00:30]} Kh6 {[%emt 0:00:00]} 59. Bg5+ {
[%emt 0:01:24]} Kg7 {[%emt 0:00:01]} 60. Bf6+ {[%emt 0:00:13]} Kh6 {
[%emt 0:00:00]} 1/2-1/2

[Event "34e Open International d'Ã©checs d'Avoin"]
[Site "Avoine, France"]
[Date "2019.07.22"]
[Round "3.5"]
[White "Ollier, Pablo"]
[Black "Sandu, Mihaela"]
[Result "0-1"]
[WhiteElo "2381"]
[BlackElo "2286"]
[PlyCount "81"]
[EventDate "2019.??.??"]
[TimeControl "1"]

1. d4 {[%emt 0:00:01]} Nf6 {[%emt 0:00:36]} 2. c4 {[%emt 0:00:04]} g6 {
[%emt 0:00:00]} 3. Nc3 {[%emt 0:00:07]} d5 {[%emt 0:01:04]} 4. e3 {
[%emt 0:00:06]} Bg7 {[%emt 0:01:32]} 5. Qb3 {[%emt 0:00:28]} dxc4 {
[%emt 0:02:30]} 6. Bxc4 {[%emt 0:00:10]} O-O {[%emt 0:00:11]} 7. Nf3 {
[%emt 0:01:10]} Nc6 {[%emt 0:15:25]} 8. Be2 {[%emt 0:06:01]} Rb8 {
[%emt 0:16:28]} 9. O-O {[%emt 0:01:07]} Bf5 {[%emt 0:00:00]} 10. d5 {
[%emt 0:06:31]} Na5 {[%emt 0:02:54]} 11. Qa3 {[%emt 0:07:57]} c6 {
[%emt 0:03:35]} 12. b4 {[%emt 0:02:53]} b5 {[%emt 0:07:44]} 13. Qxa5 {
[%emt 0:05:18]} Qxa5 {[%emt 0:02:25]} 14. bxa5 {[%emt 0:00:05]} Ne4 {
[%emt 0:00:00]} 15. Nxe4 {[%emt 0:00:38]} Bxe4 {[%emt 0:00:06]} 16. Bd2 {
[%emt 0:08:01]} Bxa1 {[%emt 0:00:20]} 17. Rxa1 {[%emt 0:00:06]} Bxd5 {
[%emt 0:09:57]} 18. Bb4 {[%emt 0:01:27]} Rfe8 {[%emt 0:02:54]} 19. Ne5 {
[%emt 0:03:08]} f6 {[%emt 0:03:00]} 20. Nd7 {[%emt 0:02:17]} Rbd8 {
[%emt 0:00:08]} 21. Nc5 {[%emt 0:00:10]} e5 {[%emt 0:01:08]} 22. a3 {
[%emt 0:03:58]} f5 {[%emt 0:03:04]} 23. Rc1 {[%emt 0:00:00]} h5 {[%emt 0:09:33]
} 24. h4 {[%emt 0:01:54]} Kh7 {[%emt 0:02:22]} 25. f3 {[%emt 0:00:47]} e4 {
[%emt 0:06:09]} 26. f4 {[%emt 0:00:20]} Rg8 {[%emt 0:03:00]} 27. Kf2 {
[%emt 0:00:37]} Rge8 {[%emt 0:00:33]} 28. a6 {[%emt 0:00:13]} Rg8 {
[%emt 0:02:10]} 29. Bc3 {[%emt 0:01:15]} Rgf8 {[%emt 0:00:34]} 30. Bd4 {
[%emt 0:00:25]} Rf7 {[%emt 0:00:31]} 31. Nb7 {[%emt 0:00:58]} Ra8 {
[%emt 0:00:56]} 32. Na5 {[%emt 0:02:16]} Rb8 {[%emt 0:05:41]} 33. Nb7 {
[%emt 0:00:42]} Ra8 {[%emt 0:00:10]} 34. Rc3 {[%emt 0:02:27]} Rff8 {
[%emt 0:00:28]} 35. Rc5 {[%emt 0:02:19]} Rac8 {[%emt 0:03:17]} 36. Bxb5 {
[%emt 0:01:34]} cxb5 {[%emt 0:00:37]} 37. Rxd5 {[%emt 0:00:05]} Rf7 {
[%emt 0:00:14]} 38. Bxa7 {[%emt 0:03:04]} g5 {[%emt 0:02:18]} 39. hxg5 {
[%emt 0:01:07]} Rc6 {[%emt 0:00:15]} 40. Bd4 {[%emt 0:01:17]} Rxa6 {
[%emt 0:00:15]} 41. Rd8 {[%emt 0:02:53]} 0-1

[Event "34e Open International d'Ã©checs d'Avoin"]
[Site "Avoine, France"]
[Date "2019.07.22"]
[Round "3.6"]
[White "Colin, Vincent"]
[Black "Bressy, Theo"]
[Result "1/2-1/2"]
[WhiteElo "2370"]
[BlackElo "2182"]
[PlyCount "87"]
[EventDate "2019.??.??"]
[TimeControl "1"]

1. d4 {[%emt 0:02:25]} d5 {[%emt 0:00:04]} 2. Nf3 {[%emt 0:00:06]} Nf6 {
[%emt 0:00:03]} 3. e3 {[%emt 0:00:08]} e6 {[%emt 0:00:12]} 4. Bd3 {
[%emt 0:02:32]} Bd6 {[%emt 0:00:08]} 5. O-O {[%emt 0:00:16]} O-O {
[%emt 0:00:05]} 6. c4 {[%emt 0:00:05]} c5 {[%emt 0:02:26]} 7. Nc3 {
[%emt 0:01:34]} dxc4 {[%emt 0:04:08]} 8. Bxc4 {[%emt 0:00:18]} Nc6 {
[%emt 0:00:23]} 9. a3 {[%emt 0:04:22]} Qe7 {[%emt 0:00:00]} 10. dxc5 {
[%emt 0:07:30]} Bxc5 {[%emt 0:00:09]} 11. b4 {[%emt 0:00:10]} Bd6 {
[%emt 0:02:54]} 12. Bb2 {[%emt 0:02:52]} Ng4 {[%emt 0:05:00]} 13. h3 {
[%emt 0:07:29]} Nge5 {[%emt 0:00:32]} 14. Nxe5 {[%emt 0:08:43]} Nxe5 {
[%emt 0:00:00]} 15. Be2 {[%emt 0:06:01]} Ng6 {[%emt 0:07:46]} 16. Ne4 {
[%emt 0:13:37]} Bc7 {[%emt 0:05:27]} 17. Rc1 {[%emt 0:02:17]} f5 {
[%emt 0:06:03]} 18. Qc2 {[%emt 0:03:52]} Bb8 {[%emt 0:07:45]} 19. Nc5 {
[%emt 0:06:16]} Bd6 {[%emt 0:14:00]} 20. Rfd1 {[%emt 0:05:19]} b6 {
[%emt 0:02:08]} 21. Bf3 {[%emt 0:02:16]} Rb8 {[%emt 0:00:15]} 22. Nd3 {
[%emt 0:00:31]} e5 {[%emt 0:04:24]} 23. Ne1 {[%emt 0:00:00]} e4 {[%emt 0:08:56]
} 24. Be2 {[%emt 0:00:20]} f4 {[%emt 0:06:53]} 25. exf4 {[%emt 0:01:11]} Bxf4 {
[%emt 0:03:30]} 26. Qb3+ {[%emt 0:00:30]} Kh8 {[%emt 0:00:26]} 27. Rc3 {
[%emt 0:03:00]} Bb7 {[%emt 0:05:01]} 28. Nc2 {[%emt 0:00:00]} Qh4 {
[%emt 0:03:02]} 29. Rf1 {[%emt 0:01:32]} Qg5 {[%emt 0:02:50]} 30. Nd4 {
[%emt 0:05:52]} Nh4 {[%emt 0:03:17]} 31. Bg4 {[%emt 0:00:37]} Bd5 {
[%emt 0:04:10]} 32. Ne6 {[%emt 0:01:07]} Qe5 {[%emt 0:00:04]} 33. Nxf8 {
[%emt 0:01:00]} Bxb3 {[%emt 0:00:40]} 34. Nd7 {[%emt 0:00:12]} Qg5 {
[%emt 0:01:45]} 35. Nxb8 {[%emt 0:02:45]} h5 {[%emt 0:00:10]} 36. g3 {
[%emt 0:01:44]} Bxb8 {[%emt 0:04:10]} 37. Rc8+ {[%emt 0:04:22]} Kh7 {
[%emt 0:00:03]} 38. Rxb8 {[%emt 0:00:00]} hxg4 {[%emt 0:00:07]} 39. gxh4 {
[%emt 0:00:15]} Qxh4 {[%emt 0:01:20]} 40. Rb7 {[%emt 0:00:19]} gxh3 {
[%emt 0:01:52]} 41. Rxg7+ {[%emt 0:04:29]} Kh6 {[%emt 0:00:11]} 42. Rg3 {
[%emt 0:05:07]} e3 {[%emt 0:09:16]} 43. Kh2 {[%emt 0:00:00]} Bc4 {
[%emt 0:00:05]} 44. Rxh3 {[%emt 0:10:49]} 1/2-1/2

[Event "34e Open International d'échecs d'Avoin"]
[Site "Avoine, France"]
[Date "2019.07.22"]
[Round "3.7"]
[White "Gouanelle, Franck"]
[Black "Stephan, Victor"]
[Result "0-1"]
[WhiteElo "2094"]
[BlackElo "2358"]
[PlyCount "146"]
[EventDate "2019.??.??"]
[TimeControl "1"]

1. d4 {[%emt 0:07:57]} Nf6 {[%emt 0:00:16]} 2. Nf3 {[%emt 0:00:14]} e6 {
[%emt 0:00:25]} 3. Bf4 {[%emt 0:00:05]} d5 {[%emt 0:00:26]} 4. e3 {
[%emt 0:00:30]} Bd6 {[%emt 0:00:20]} 5. Bg3 {[%emt 0:00:45]} O-O {
[%emt 0:00:23]} 6. Nbd2 {[%emt 0:02:38]} c5 {[%emt 0:00:17]} 7. c3 {
[%emt 0:00:18]} Qc7 {[%emt 0:00:12]} 8. Ne5 {[%emt 0:06:19]} Nc6 {
[%emt 0:01:40]} 9. f4 {[%emt 0:03:00]} Ne7 {[%emt 0:03:11]} 10. Bf2 {
[%emt 0:13:59]} c4 {[%emt 0:09:53]} 11. Qf3 {[%emt 0:04:13]} b5 {[%emt 0:04:22]
} 12. Bh4 {[%emt 0:06:30]} Ne8 {[%emt 0:05:44]} 13. Bxe7 {[%emt 0:02:14]} Bxe7
{[%emt 0:01:04]} 14. Be2 {[%emt 0:02:41]} Bb7 {[%emt 0:03:00]} 15. Qh3 {
[%emt 0:07:06]} Nd6 {[%emt 0:05:06]} 16. Bd1 {[%emt 0:02:09]} Rae8 {
[%emt 0:03:19]} 17. Bc2 {[%emt 0:04:06]} Ne4 {[%emt 0:00:38]} 18. O-O {
[%emt 0:05:39]} Bd6 {[%emt 0:01:59]} 19. Nxe4 {[%emt 0:15:11]} dxe4 {
[%emt 0:00:00]} 20. a3 {[%emt 0:00:19]} f6 {[%emt 0:04:09]} 21. Ng4 {
[%emt 0:00:07]} Bd5 {[%emt 0:00:25]} 22. Nf2 {[%emt 0:04:32]} f5 {
[%emt 0:00:48]} 23. Nh1 {[%emt 0:02:55]} a5 {[%emt 0:02:36]} 24. g4 {
[%emt 0:02:16]} b4 {[%emt 0:01:56]} 25. axb4 {[%emt 0:05:37]} axb4 {
[%emt 0:00:10]} 26. gxf5 {[%emt 0:00:31]} exf5 {[%emt 0:01:11]} 27. Ng3 {
[%emt 0:04:43]} g6 {[%emt 0:02:17]} 28. Rae1 {[%emt 0:02:29]} Ra8 {
[%emt 0:01:58]} 29. Bb1 {[%emt 0:01:29]} bxc3 {[%emt 0:02:02]} 30. bxc3 {
[%emt 0:00:06]} Ra3 {[%emt 0:00:17]} 31. Rc1 {[%emt 0:01:03]} Qa5 {
[%emt 0:01:19]} 32. Ne2 {[%emt 0:04:00]} Rb8 {[%emt 0:00:45]} 33. Qh4 {
[%emt 0:00:00]} Qd8 {[%emt 0:01:22]} 34. Qxd8+ {[%emt 0:00:35]} Rxd8 {
[%emt 0:00:05]} 35. Kf2 {[%emt 0:00:18]} Rb8 {[%emt 0:00:31]} 36. Rfd1 {
[%emt 0:00:43]} Kg7 {[%emt 0:01:29]} 37. Ke1 {[%emt 0:00:23]} h6 {
[%emt 0:00:17]} 38. Kd2 {[%emt 0:00:00]} g5 {[%emt 0:00:24]} 39. fxg5 {
[%emt 0:00:21]} hxg5 {[%emt 0:00:06]} 40. Ng3 {[%emt 0:00:10]} Kg6 {
[%emt 0:02:29]} 41. Rf1 {[%emt 0:00:23]} Be6 {[%emt 0:02:43]} 42. Bc2 {
[%emt 0:04:21]} Bc7 {[%emt 0:12:14]} 43. Ra1 {[%emt 0:03:04]} Rba8 {
[%emt 0:04:42]} 44. Rab1 {[%emt 0:04:14]} Rh8 {[%emt 0:05:10]} 45. Rf2 {
[%emt 0:00:14]} Rb8 {[%emt 0:00:43]} 46. Rff1 {[%emt 0:04:37]} Rh8 {
[%emt 0:00:00]} 47. Rf2 {[%emt 0:00:10]} Ra2 {[%emt 0:02:28]} 48. Rb5 {
[%emt 0:19:32]} Rb8 {[%emt 0:07:41]} 49. Rxb8 {[%emt 0:01:19]} Bxb8 {
[%emt 0:00:04]} 50. Kc1 {[%emt 0:01:46]} Bc7 {[%emt 0:01:11]} 51. Kb1 {
[%emt 0:03:38]} Ra8 {[%emt 0:00:00]} 52. Bd1 {[%emt 0:02:34]} Rh8 {
[%emt 0:03:05]} 53. Ra2 {[%emt 0:01:38]} Bxg3 {[%emt 0:03:31]} 54. hxg3 {
[%emt 0:01:12]} Rh1 {[%emt 0:00:04]} 55. Kc1 {[%emt 0:00:24]} f4 {
[%emt 0:02:06]} 56. Ra6 {[%emt 0:07:02]} Kf7 {[%emt 0:01:00]} 57. Ra7+ {
[%emt 0:01:33]} Kf6 {[%emt 0:00:31]} 58. gxf4 {[%emt 0:01:14]} gxf4 {
[%emt 0:00:18]} 59. Ra6 {[%emt 0:00:31]} fxe3 {[%emt 0:01:01]} 60. Kc2 {
[%emt 0:00:46]} Rh2+ {[%emt 0:01:00]} 61. Kc1 {[%emt 0:01:23]} Ke7 {
[%emt 0:00:00]} 62. Ra7+ {[%emt 0:00:55]} Kd8 {[%emt 0:00:31]} 63. Ra8+ {
[%emt 0:02:13]} Kc7 {[%emt 0:00:20]} 64. Ra7+ {[%emt 0:00:29]} Kb8 {
[%emt 0:01:19]} 65. Re7 {[%emt 0:00:25]} Bd5 {[%emt 0:01:02]} 66. Re5 {
[%emt 0:01:43]} Bb7 {[%emt 0:01:00]} 67. d5 {[%emt 0:04:31]} e2 {[%emt 0:01:14]
} 68. Bxe2 {[%emt 0:00:05]} Rxe2 {[%emt 0:00:08]} 69. d6 {[%emt 0:00:07]} Bc6 {
[%emt 0:01:57]} 70. Re7 {[%emt 0:00:00]} Re3 {[%emt 0:01:03]} 71. Rc7 {
[%emt 0:01:01]} Rxc3+ {[%emt 0:00:19]} 72. Kb2 {[%emt 0:00:32]} Rb3+ {
[%emt 0:00:28]} 73. Ka2 {[%emt 0:00:11]} Rb6 {[%emt 0:00:57]} 0-1